bitfinex-derivatives/quotes_SOLF0:USTF0_20250331
["timestamp","ask_amount","ask_price","bid_price","bid_amount"]
[1743428424214,8.11645258,124.16,124.13,8.11449]
[1743428424422,0.06055258,124.16,124.13,8.11449]
[1743428424617,8.11635258,124.16,124.14,8.0567]
[1743428424817,0.06055258,124.16,124.14,8.0567]
[1743428425008,0.06055258,124.16,124.13,0.05739]
[1743428425215,8.0568,124.14,124.13,0.05739]
[1743428425721,0.06055258,124.16,124.09,8.0597]
[1743428425916,8.5651,124.17,124.08,62.0]
[1743428426216,8.5651,124.17,124.14,8.0568]
[1743428426417,16.6203,124.17,124.14,8.0568]
[1743428426911,16.68217876,124.17,124.15,8.056]
[1743428427117,0.06187876,124.17,124.12,23.5527365]
[1743428427512,0.06187876,124.17,124.16,8.0555]
[1743428427917,0.06187876,124.17,124.12,23.5527365]
[1743428428520,8.11687876,124.17,124.14,8.0562]
[1743428428822,0.06187876,124.17,124.12,23.5527365]
[1743428430122,0.06187876,124.17,124.16,8.0555]
[1743428430721,85.05776611,124.19,124.18,8.0542]
[1743428431025,189.86333256,124.2,124.18,23.5527365]
[1743428431319,169.05422455,124.21,124.18,23.5527365]
[1743428431516,169.05422455,124.21,124.2,23.5527365]
[1743428431719,169.05422455,124.21,124.16,421.7127365]
[1743428431924,169.05422455,124.21,124.19,0.05582154]
[1743428432127,8.0533,124.2,124.19,0.05582154]
[1743428433728,8.0559,124.16,124.13,40.0]
[1743428433923,3.979,124.2,124.13,40.0]
[1743428434131,3.979,124.2,124.13,102.0]
[1743428434628,27.5317365,124.2,124.1,23.5527365]
[1743428434824,8.0577,124.13,124.1,39.96]
[1743428435224,0.05801114,124.13,124.11,8.0588]
[1743428435425,0.05801114,124.13,124.09,358.0]
[1743428435630,0.05801114,124.13,124.1,39.92]
[1743428435826,0.05801114,124.13,124.11,8.0585]
[1743428436129,0.05801114,124.13,124.09,358.0]
[1743428436433,0.05801114,124.13,124.07,89.28182167]
[1743428436635,8.34891114,124.13,124.07,89.28182167]
[1743428436833,8.0607,124.08,124.07,89.28182167]
[1743428437427,8.12074671,124.09,124.07,89.28182167]
[1743428437835,0.06024671,124.09,124.04,151.28182167]
[1743428438135,8.061,124.08,124.05,8.0624]
[1743428438335,0.06024671,124.09,124.05,8.0624]
[1743428438539,0.06024671,124.09,124.04,89.28182167]
[1743428438733,8.12064671,124.09,124.05,8.0623]
[1743428438924,0.06024671,124.09,124.05,8.0623]
[1743428439125,0.06024671,124.09,124.04,89.28182167]
[1743428439330,0.06024671,124.09,124.04,112.83455817]
[1743428439734,0.06024671,124.09,124.08,8.0607]
[1743428440134,0.06024671,124.09,124.07,39.8]
[1743428440135,43.9788,124.15,124.07,39.8]
[1743428440335,39.76,124.18,124.08,23.5527365]
[1743428440536,43.9588,124.18,124.08,23.5527365]
[1743428440733,67.5115365,124.18,124.07,39.8]
[1743428440936,23.5527365,124.16,124.07,39.8]
[1743428441341,0.05303282,124.13,124.1,0.05755984]
[1743428443536,0.05303282,124.13,124.11,8.0585]
[1743428443837,0.05303282,124.13,124.1,0.05755984]
[1743428444039,0.05303282,124.13,124.1,8.11665984]
[1743428444338,0.05303282,124.13,124.1,0.05755984]
[1743428445439,23.5527365,124.2,124.1,0.05755984]
[1743428445440,369.33606367,124.26,124.12,23.5527365]
[1743428445635,8.3151,124.23,124.14,23.5527365]
[1743428445943,31.8678365,124.23,124.15,39.48]
[1743428446441,23.5527365,124.21,124.13,8.0572]
[1743428446643,0.05166754,124.2,124.18,0.05284892]
[1743428446839,8.0572,124.14,124.12,39.5]
[1743428447239,27.6486365,124.19,124.12,39.5]
[1743428447435,8.0571,124.14,124.12,39.5]
[1743428447941,0.05431279,124.14,124.13,8.0573]
[1743428448138,0.05431279,124.14,124.12,39.55368207]
[1743428448643,0.05431279,124.14,124.13,70.0575]
[1743428448833,0.05431279,124.14,124.13,62.0]
[1743428449037,0.05431279,124.14,124.13,70.0575]
[1743428451339,0.05431279,124.14,124.13,62.0]
[1743428451545,0.05431279,124.14,124.12,0.05368207]
[1743428451943,8.0575,124.13,124.12,0.05368207]
[1743428452347,31.6127365,124.13,124.05,89.28182167]
[1743428452543,8.0618,124.07,124.05,89.28182167]
[1743428452939,4.291,124.12,124.05,89.28182167]
[1743428453545,0.05607381,124.1,124.08,8.0607]
[1743428453741,0.05607381,124.1,124.07,39.06]
[1743428454048,0.05607381,124.1,124.08,39.04]
[1743428454551,0.05607381,124.1,124.09,62.0]
[1743428454944,8.0601,124.09,124.06,8.0617]
[1743428455141,0.05607381,124.1,124.05,39.0]
[1743428455348,0.05607381,124.1,124.06,25.02244362]
[1743428455543,0.05607381,124.1,124.05,39.0]
[1743428455849,0.05607381,124.1,124.05,39.02]
[1743428456149,8.0612,124.08,124.05,47.0824]
[1743428456350,0.05607381,124.1,124.05,39.02]
[1743428456643,0.05607381,124.1,124.06,23.5527365]
[1743428457140,62.6127365,124.2,124.08,23.5527365]
[1743428457341,8.3638,124.21,124.1,23.5527365]
[1743428457541,8.0552,124.17,124.13,8.0569]
[1743428457746,4.1562,124.2,124.1,23.5527365]
[1743428457747,27.7089365,124.2,124.1,23.5527365]
[1743428457946,27.7089365,124.2,124.11,62.0]
[1743428458346,0.05914334,124.17,124.14,0.05077072]
[1743428459945,342.5193594,124.26,124.14,23.60350722]
[1743428460144,8.1962,124.25,124.19,8.0531]
[1743428460342,8.1962,124.25,124.18,38.98]
[1743428461146,0.05226624,124.23,124.2,0.0515956]
[1743428461450,8.0523,124.21,124.2,0.0515956]
[1743428461650,0.05226624,124.23,124.2,0.0515956]
[1743428461852,8.0521,124.22,124.2,0.0515956]
[1743428462150,0.05226624,124.23,124.2,0.0515956]
[1743428463246,0.05226624,124.23,124.21,62.0]
[1743428463446,0.05226624,124.23,124.2,0.0515956]
[1743428463955,23.5527365,124.22,124.13,38.86]
[1743428464149,23.5527365,124.2,124.13,38.86]
[1743428464454,4.2823,124.19,124.11,38.86]
[1743428464655,23.5527365,124.18,124.11,38.86]
[1743428464850,27.8774365,124.18,124.1,89.28182167]
[1743428465146,0.0530683,124.16,124.13,0.05943667]
[1743428465752,0.0530683,124.16,124.13,38.85943667]
[1743428466545,0.0530683,124.16,124.15,8.0562]
[1743428466748,4.3247,124.21,124.14,23.5527365]
[1743428467049,12.3774,124.21,124.18,8.0542]
[1743428467251,4.3247,124.21,124.18,8.0542]
[1743428467951,12.43010434,124.21,124.18,8.10620179]
[1743428468154,0.05300434,124.21,124.19,8.0534]
[1743428468944,0.05300434,124.21,124.18,8.10600179]
[1743428469544,8.0533,124.2,124.18,0.05200179]
[1743428469749,0.05300434,124.21,124.19,62.0]
[1743428470248,8.10570434,124.21,124.19,62.0]
[1743428470450,0.05300434,124.21,124.19,62.0]
[1743428473156,0.05300434,124.21,124.2,8.0529]
[1743428473355,318.9666229,124.26,124.2,38.21759389]
[1743428473557,318.9666229,124.26,124.21,38.36]
[1743428474258,318.9666229,124.26,124.22,38.21759389]
[1743428474458,318.9666229,124.26,124.25,8.0497]
[1743428474649,244.23857118,124.26,124.25,46.3497]
[1743428474852,244.23857118,124.26,124.25,47.81707736]
[1743428475058,244.23857118,124.26,124.25,46.3497]
[1743428475660,244.23857118,124.26,124.25,47.81696896]
[1743428475854,244.23857118,124.26,124.25,39.76726896]
[1743428476057,244.23857118,124.26,124.22,289.81218573]
[1743428476355,244.23857118,124.26,124.24,38.28]
[1743428476557,8.0499,124.25,124.24,38.28]
[1743428476756,244.23857118,124.26,124.22,0.05218573]
[1743428477059,8.051,124.23,124.22,0.05218573]
[1743428478062,0.05245026,124.24,124.22,0.05218573]
[1743428479657,8.051,124.23,124.22,0.05218573]
[1743428479960,0.05245026,124.24,124.22,0.05218573]
[1743428480753,8.051,124.23,124.22,0.05218573]
[1743428481357,8.10305026,124.24,124.22,0.05218573]
[1743428481862,8.051,124.23,124.22,0.05218573]
[1743428482061,0.05245026,124.24,124.22,0.05218573]
[1743428482563,0.05245026,124.24,124.23,62.0]
[1743428482757,0.05245026,124.24,124.23,70.051]
[1743428483163,0.05245026,124.24,124.23,71.51866657]
[1743428483558,0.05245026,124.24,124.23,70.051]
[1743428485266,5.026e-05,124.24,124.23,70.051]
[1743428488366,5.026e-05,124.24,124.23,99.58]
[1743428488566,5.026e-05,124.24,124.23,62.0]
[1743428488868,5.026e-05,124.24,124.22,37.61218573]
[1743428490168,8.051,124.23,124.22,0.05218573]
[1743428490365,5.026e-05,124.24,124.16,647.7]
[1743428490570,4.3398,124.22,124.15,126.74182167]
[1743428490771,8.0552,124.17,124.15,89.28182167]
[1743428491169,8.0552,124.17,124.14,8.0565]
[1743428491465,8.11446505,124.17,124.14,8.1118812]
[1743428491768,0.05926505,124.17,124.14,0.0553812]
[1743428493272,0.05926505,124.17,124.15,8.0558]
[1743428493766,0.05926505,124.17,124.16,8.0555]
[1743428494173,4.3398,124.22,124.15,38.21894677]
[1743428494367,4.3398,124.22,124.17,38.21894677]
[1743428494571,4.3398,124.22,124.18,37.3]
[1743428494771,4.3398,124.22,124.19,62.0]
[1743428495368,4.40095061,124.22,124.19,62.05476331]
[1743428496062,8.0529,124.2,124.19,0.05476331]
[1743428496271,42.61989738,124.22,124.14,37.18]
[1743428496469,42.55874677,124.22,124.14,37.18]
[1743428496670,42.55874677,124.22,124.11,118.80663818]
[1743428496872,42.55874677,124.22,124.12,37.2]
[1743428497264,4.3398,124.22,124.12,37.2]
[1743428497566,0.05791308,124.18,124.16,0.05593764]
[1743428497874,0.05791308,124.18,124.09,326.84]
[1743428497875,38.27685985,124.18,124.09,326.84]
[1743428498071,38.21894677,124.18,124.09,37.2]
[1743428498268,8.058,124.13,124.09,37.2]
[1743428498668,8.0585,124.12,124.07,89.28182167]
[1743428498867,8.0585,124.12,124.1,0.06122703]
[1743428498868,0.05998252,124.12,124.1,0.06122703]
[1743428499073,0.05998252,124.12,124.1,62.06122703]
[1743428500576,8.0588,124.11,124.1,62.06122703]
[1743428501473,8.061,124.08,124.06,37.1]
[1743428501675,38.21894677,124.13,124.06,37.1]
[1743428501877,4.3116,124.12,124.04,37.1]
[1743428502274,4.3116,124.12,124.02,485.50076844]
[1743428502477,4.3116,124.12,124.03,46.6136524]
[1743428502679,0.05806036,124.08,124.06,0.05771125]
[1743428503379,8.11876036,124.08,124.06,0.05771125]
[1743428504280,8.11876036,124.08,124.07,62.0]
[1743428505478,8.0614,124.07,124.06,0.05771125]
[1743428506281,8.11906036,124.08,124.06,0.05771125]
[1743428506481,0.05806036,124.08,124.06,0.05771125]
[1743428506880,8.0614,124.07,124.06,0.05771125]
[1743428507384,0.05806036,124.08,124.06,0.05771125]
[1743428508284,0.05806036,124.08,124.07,36.72]
[1743428508487,0.05806036,124.08,124.07,98.72]
[1743428508685,0.05806036,124.08,124.07,106.7814]
[1743428509478,8.223,124.14,124.08,8.0605]
[1743428509684,8.223,124.14,124.07,36.72]
[1743428509884,8.0597,124.1,124.07,36.72]
[1743428510080,8.0597,124.1,124.07,44.7813]
[1743428510686,0.06151321,124.1,124.08,8.0602]
[1743428510887,0.06151321,124.1,124.07,36.77238651]
[1743428511286,0.06151321,124.1,124.08,8.0604]
[1743428511991,0.06151321,124.1,124.07,36.77238651]
[1743428512392,0.06151321,124.1,124.08,38.21894677]
[1743428512587,0.06151321,124.1,124.09,70.0601]
[1743428512793,8.4171,124.17,124.09,62.0]
[1743428513097,4.2627,124.21,124.12,38.21894677]
[1743428513296,12.6354,124.21,124.13,36.6]
[1743428513492,38.21894677,124.2,124.11,8.0584]
[1743428513692,38.21894677,124.2,124.11,36.58]
[1743428513898,0.06122135,124.17,124.14,0.05163998]
[1743428514293,8.0562,124.15,124.14,0.05163998]
[1743428514797,8.0558,124.16,124.14,0.05163998]
[1743428515101,0.06122135,124.17,124.11,36.58]
[1743428515102,0.06122135,124.17,124.12,8.0578]
[1743428515392,0.06122135,124.17,124.11,36.58]
[1743428515596,0.06122135,124.17,124.13,8.0571]
[1743428515796,8.0558,124.16,124.13,8.0571]
[1743428516196,8.0558,124.16,124.14,62.0]
[1743428516796,0.06122135,124.17,124.14,62.0]
[1743428517691,0.06122135,124.17,124.15,8.0559]
[1743428518098,0.06122135,124.17,124.13,23.59590834]
[1743428518697,8.11632135,124.17,124.13,23.59590834]
[1743428518898,0.06122135,124.17,124.13,0.05360269]
[1743428519094,0.06122135,124.17,124.13,8.11060269]
[1743428519295,8.0558,124.16,124.13,0.05360269]
[1743428519798,8.0558,124.16,124.13,8.11070269]
[1743428520097,8.11632135,124.17,124.13,0.05360269]
[1743428520297,0.06122135,124.17,124.13,0.05360269]
[1743428521096,0.06122135,124.17,124.13,62.05360269]
[1743428521397,0.06122135,124.17,124.13,0.05360269]
[1743428521597,8.0568,124.14,124.13,0.05360269]
[1743428522604,23.603527,124.17,124.09,358.0]
[1743428522801,23.54230565,124.17,124.08,8.0604]
[1743428522997,23.54230565,124.15,124.06,23.54230565]
[1743428523203,45.0853,124.14,124.06,8.0617]
[1743428523400,45.0853,124.14,124.04,149.36412732]
[1743428523704,8.0599,124.1,124.09,0.05648237]
[1743428523899,0.06068387,124.11,124.09,0.05648237]
[1743428524307,0.06068387,124.11,124.09,70.11618237]
[1743428524700,8.11958387,124.11,124.09,70.11618237]
[1743428525002,8.11958387,124.11,124.09,62.05648237]
[1743428525003,0.06068387,124.11,124.09,62.05648237]
[1743428525302,8.11968387,124.11,124.09,62.05648237]
[1743428525499,0.06068387,124.11,124.09,62.05648237]
[1743428525899,8.11998387,124.11,124.09,62.05648237]
[1743428526208,0.06068387,124.11,124.09,62.05648237]
[1743428526408,8.0594,124.1,124.09,0.05648237]
[1743428526600,0.06068387,124.11,124.09,0.05648237]
[1743428526801,0.06068387,124.11,124.09,8.11608237]
[1743428527004,0.06068387,124.11,124.09,0.05648237]
[1743428528206,0.06068387,124.11,124.1,8.0594]
[1743428528904,0.06068387,124.11,124.09,36.61648237]
[1743428529600,0.06068387,124.11,124.09,0.05648237]
[1743428530607,8.11958387,124.11,124.09,0.05648237]
[1743428531504,0.06068387,124.11,124.09,0.05648237]
[1743428531901,0.06068387,124.11,124.06,36.56]
[1743428532197,4.3659,124.13,124.06,36.56]
[1743428532398,4.3659,124.13,124.07,62.0]
[1743428532597,8.0586,124.12,124.08,8.0602]
[1743428532796,4.3659,124.13,124.07,62.0]
[1743428533002,0.05489261,124.11,124.09,0.02789982]
[1743428533608,0.05489261,124.11,124.09,8.08769982]
[1743428533904,0.05489261,124.11,124.09,0.02789982]
[1743428534309,8.11399261,124.11,124.09,0.02789982]
[1743428534704,8.0594,124.1,124.09,0.02789982]
[1743428534900,8.0594,124.1,124.04,60.10230565]
[1743428535109,40.9259,124.13,124.04,60.10230565]
[1743428535409,8.0591,124.11,124.07,8.061]
[1743428535608,40.9259,124.13,124.04,60.10230565]
[1743428535908,8.0592,124.11,124.07,8.0612]
[1743428536109,0.05424799,124.1,124.07,8.0612]
[1743428536506,8.11374799,124.1,124.07,8.0612]
[1743428536909,0.05424799,124.1,124.04,60.10230565]
[1743428537109,0.05424799,124.1,124.05,1.46981392]
[1743428537299,0.05424799,124.1,124.04,60.10230565]
[1743428537908,0.05424799,124.1,124.06,23.54230565]
[1743428538208,0.05424799,124.1,124.08,8.0602]
[1743428538511,8.11374799,124.1,124.06,23.54230565]
[1743428538710,0.05424799,124.1,124.06,23.54230565]
[1743428539010,8.11394799,124.1,124.07,8.0613]
[1743428539210,0.05424799,124.1,124.05,36.56]
[1743428539607,0.05424799,124.1,124.06,62.0]
[1743428540710,8.0604,124.09,124.06,62.0]
[1743428540910,8.0604,124.09,124.07,8.0613]
[1743428541113,0.05424799,124.1,124.06,62.0]
[1743428541413,0.05424799,124.1,124.08,8.0604]
[1743428541613,0.05424799,124.1,124.06,62.0]
[1743428542511,0.05424799,124.1,124.08,8.0604]
[1743428542712,0.05424799,124.1,124.06,62.0]
[1743428543615,0.05424799,124.1,124.09,8.0601]
[1743428543917,0.05424799,124.1,124.06,76.72075915]
[1743428544213,0.05424799,124.1,124.03,358.0]
[1743428544412,8.063,124.05,124.02,89.28182167]
[1743428544617,51.28075915,124.09,124.02,89.28182167]
[1743428544913,0.06136193,124.05,124.02,89.28182167]
[1743428545116,8.12436193,124.05,124.03,89.28182167]
[1743428545415,0.06136193,124.05,124.03,89.28182167]
[1743428545608,8.12426193,124.05,124.03,89.28182167]
[1743428545810,0.06136193,124.05,124.03,82.67312167]
[1743428546016,8.064,124.03,124.02,133.9227325]
[1743428547808,8.064,124.03,124.01,223.2045541]
[1743428548116,8.064,124.03,123.97,88.95284953]
[1743428548117,31.65538704,124.03,123.96,19.77690973]
[1743428548414,8.0679,123.97,123.96,19.77690973]
[1743428548813,31.65538704,123.97,123.95,134.05010534]
[1743428549118,31.65538704,123.97,123.93,279.0056927]
[1743428549320,23.59538704,123.94,123.93,279.0056927]
[1743428549520,36.56,123.94,123.93,279.0056927]
[1743428550322,0.05992493,123.95,123.93,279.0056927]
[1743428550919,0.05992493,123.95,123.93,341.0056927]
[1743428551118,0.05992493,123.95,123.89,36.56]
[1743428551422,0.05992493,123.95,123.94,8.0698]
[1743428551815,0.05992493,123.95,123.91,23.59538704]
[1743428551816,67.42106107,123.98,123.93,36.58]
[1743428552016,67.42106107,123.98,123.94,8.3268]
[1743428552318,506.69280666,124.01,123.94,8.3268]
[1743428552319,290.08,124.01,123.94,8.3268]
[1743428552519,313.67538704,124.01,123.94,8.3268]
[1743428552715,321.74098704,124.01,123.94,8.3268]
[1743428553023,0.06025049,123.99,123.96,8.12802493]
[1743428553224,0.06025049,123.99,123.96,0.05992493]
[1743428554123,0.06025049,123.99,123.97,62.0]
[1743428554323,0.06025049,123.99,123.98,8.0672]
[1743428554520,10.86695993,124.03,123.97,98.56]
[1743428554826,10.86695993,124.03,123.97,122.15538704]
[1743428555330,10.86695993,124.03,124.02,8.0646]
[1743428555621,136.65388162,124.04,124.02,36.58]
[1743428555931,10.7505624,124.07,124.06,8.062]
[1743428556126,49.94090114,124.08,124.06,36.58]
[1743428556328,216.68066448,124.09,124.08,8.0607]
[1743428556524,216.68066448,124.09,124.07,23.59538704]
[1743428556919,216.68066448,124.09,124.07,31.71407692]
[1743428557124,216.73480065,124.09,124.07,31.71407692]
[1743428557429,196.97410065,124.09,124.08,8.0607]
[1743428557622,196.97410065,124.09,124.07,23.65277692]
[1743428557823,400.50836752,124.19,124.07,23.65277692]
[1743428558127,8.0564,124.15,124.07,23.59538704]
[1743428558420,8.0564,124.15,124.07,31.65648704]
[1743428558628,4.1287,124.14,124.07,23.59538704]
[1743428558827,4.1287,124.14,124.03,23.59538704]
[1743428559028,8.0592,124.11,124.09,0.06116328]
[1743428559423,0.05235098,124.12,124.04,62.0]
[1743428559626,4.1767,124.11,124.04,98.56]
[1743428560624,0.05618029,124.09,124.06,0.05300845]
[1743428560829,23.65156733,124.09,124.01,36.56]
[1743428561218,23.59538704,124.09,124.01,36.56]
[1743428561623,23.59538704,124.09,123.97,23.59538704]
[1743428561819,23.59538704,124.07,123.98,36.56]
[1743428562022,0.05541144,124.04,124.02,0.0518933]
[1743428562328,8.11921144,124.04,124.02,0.0518933]
[1743428562828,0.05541144,124.04,124.02,36.6118933]
[1743428563726,0.05541144,124.04,124.03,62.0]
[1743428564927,4.0256,124.09,124.03,62.0]
[1743428565127,86.71298048,124.12,124.06,23.59538704]
[1743428565433,86.71298048,124.12,124.07,36.56]
[1743428565629,86.71298048,124.14,124.07,36.56]
[1743428565829,23.59538704,124.13,124.02,23.59538704]
[1743428566024,23.59538704,124.11,124.09,0.05998313]
[1743428566231,8.409,124.1,124.03,36.56]
[1743428566735,23.59538704,124.09,123.99,23.59538704]
[1743428567034,8.409,124.1,123.97,60.15538704]
[1743428567035,23.59538704,124.07,123.97,60.15538704]
[1743428567231,0.05094077,124.05,124.02,0.05482996]
[1743428567438,8.064,124.03,124.02,0.05482996]
[1743428567838,0.05094077,124.05,124.02,0.05482996]
[1743428568735,8.064,124.03,124.02,0.05482996]
[1743428569137,0.05094077,124.05,123.99,62.0]
[1743428569339,8.0659,124.0,123.99,62.0]
[1743428569541,40.7989,124.06,123.99,62.0]
[1743428569931,8.0659,124.0,123.99,62.0]
[1743428570136,40.7989,124.06,123.99,62.0]
[1743428570337,0.05488568,124.01,123.99,62.0]
[1743428570535,8.0653,124.01,123.99,62.0]
[1743428570741,0.05754761,124.01,123.99,62.05871331]
[1743428571346,8.0659,124.0,123.99,62.05871331]
[1743428571644,8.0659,124.0,123.99,0.05871331]
[1743428573138,0.05754761,124.01,123.99,0.05871331]
[1743428573344,0.05754761,124.01,123.99,36.61871331]
[1743428573546,0.05754761,124.01,123.99,68.28030035]
[1743428573943,0.05754761,124.01,123.99,60.21410035]
[1743428574245,8.0623,124.06,123.99,60.21410035]
[1743428574446,90.86488048,124.07,123.99,60.21410035]
[1743428574643,90.86488048,124.07,124.0,62.0]
[1743428574843,8.063,124.05,124.0,70.0657]
[1743428575042,90.86488048,124.07,124.0,62.0]
[1743428575545,0.06160122,124.05,124.02,0.05420759]
[1743428577038,8.064,124.04,124.02,0.05420759]
[1743428577246,0.06160122,124.05,124.02,0.05420759]
[1743428577948,0.06160122,124.05,123.96,328.45017257]
[1743428578146,38.31017257,124.05,123.96,36.56]
[1743428578341,36.56,124.06,123.96,74.87017257]
[1743428578846,8.0639,124.04,124.0,8.0656]
[1743428579043,36.56,124.06,123.97,62.0]
[1743428579243,0.05601304,124.03,124.01,0.05620597]
[1743428579847,0.05601304,124.03,124.01,8.12110597]
[1743428580244,1.304e-05,124.03,124.01,36.61620597]
[1743428580547,1.304e-05,124.03,124.02,46.37477257]
[1743428580739,1.304e-05,124.03,124.02,8.0646]
[1743428581339,1.304e-05,124.03,124.02,46.37477257]
[1743428581943,1.304e-05,124.03,124.01,0.05620597]
[1743428582445,8.06431304,124.03,124.01,0.05620597]
[1743428582643,1.304e-05,124.03,124.01,36.61620597]
[1743428583050,1.304e-05,124.03,124.01,44.68120597]
[1743428583740,1.304e-05,124.03,124.01,36.61620597]
[1743428583943,8.06461304,124.03,124.01,36.61620597]
[1743428584149,1.304e-05,124.03,124.01,44.68090597]
[1743428584955,1.304e-05,124.03,124.02,8.0646]
[1743428585151,1.304e-05,124.03,124.02,46.37477257]
[1743428585953,1.304e-05,124.03,124.02,8.0646]
[1743428588044,1.304e-05,124.03,124.01,36.61620597]
[1743428588249,1.304e-05,124.03,124.01,0.05620597]
[1743428588449,36.54001304,124.03,123.93,400.38107257]
[1743428588651,36.54001304,124.03,123.93,4.0709]
[1743428588949,38.31017257,124.02,123.94,62.0]
[1743428589143,8.0682,123.97,123.94,70.0694]
[1743428589349,8.0682,123.97,123.94,62.0]
[1743428589750,8.12121568,123.97,123.94,70.12979768]
[1743428589949,8.0686,123.96,123.94,70.12979768]
[1743428590654,38.31017257,123.96,123.84,38.31017257]
[1743428590847,38.31017257,123.96,123.85,38.03164858]
[1743428591045,8.0714,123.92,123.89,8.0727]
[1743428591245,38.31017257,123.96,123.85,36.56]
[1743428591450,8.0725,123.9,123.86,1.47173257]
[1743428591654,38.31017257,123.96,123.86,1.47173257]
[1743428591952,8.074,123.88,123.86,1.47173257]
[1743428592154,38.31017257,123.92,123.82,38.31017257]
[1743428592355,0.05867079,123.88,123.83,1.47223544]
[1743428592656,8.13277079,123.88,123.84,8.076]
[1743428592855,0.05867079,123.88,123.81,36.56]
[1743428593048,8.0754,123.86,123.82,1.47235249]
[1743428593254,38.31017257,123.86,123.72,396.31017257]
[1743428593550,0.06187244,123.8,123.73,101.78317236]
[1743428593751,0.06187244,123.8,123.74,1.47299979]
[1743428594056,0.06187244,123.8,123.74,8.0824]
[1743428594357,0.06187244,123.8,123.73,62.0]
[1743428594559,0.06187244,123.8,123.73,8.0833]
[1743428595151,0.06187244,123.8,123.73,8.0835]
[1743428595461,0.06187244,123.8,123.72,38.31017257]
[1743428595646,0.06187244,123.8,123.73,1.47354616]
[1743428595852,0.05104959,123.77,123.74,74.87017257]
[1743428596855,38.31017257,123.86,123.74,74.87017257]
[1743428596856,38.31017257,123.86,123.76,38.31017257]
[1743428597059,290.42,123.89,123.78,38.31017257]
[1743428597358,36.58,123.9,123.85,8.0753]
[1743428597558,36.58,123.9,123.86,62.0]
[1743428597751,119.11520494,123.88,123.84,36.58]
[1743428597955,0.05593883,123.87,123.85,0.05259927]
[1743428599855,0.05593883,123.87,123.86,8.075]
[1743428600057,0.05593883,123.87,123.78,38.31017257]
[1743428600258,74.89017257,123.9,123.8,38.31017257]
[1743428600458,44.6534,123.89,123.79,36.58]
[1743428600658,44.6534,123.89,123.8,63.47262741]
[1743428600958,0.05167505,123.86,123.82,38.31017257]
[1743428601157,0.05167505,123.86,123.83,1.47262741]
[1743428601458,0.05167505,123.86,123.8,38.31017257]
[1743428601855,0.05167505,123.86,123.81,1.47253346]
[1743428603962,0.05167505,123.86,123.82,38.31017257]
[1743428604165,0.05167505,123.86,123.83,98.58]
[1743428604558,394.40222446,123.95,123.84,38.31017257]
[1743428604762,38.31017257,123.94,123.84,38.31017257]
[1743428604962,38.31017257,123.92,123.83,98.58]
[1743428605263,8.0738,123.88,123.83,106.6566]
[1743428605462,38.31017257,123.92,123.83,98.58]
[1743428605658,0.05173861,123.87,123.85,8.0752]
[1743428605858,8.0725,123.9,123.83,98.58]
[1743428606154,0.05194956,123.87,123.85,0.05167505]
[1743428606354,8.0738,123.88,123.83,106.6567]
[1743428606555,38.31017257,123.9,123.83,106.6567]
[1743428606759,8.0744,123.87,123.83,98.58]
[1743428607064,36.58,123.89,123.83,98.58]
[1743428607367,8.0743,123.88,123.83,106.6566]
[1743428607664,0.05505174,123.87,123.75,358.0]
[1743428607854,38.31017257,123.86,123.76,76.36314742]
[1743428608055,0.06124761,123.82,123.72,396.31017257]
[1743428608362,74.89017257,123.82,123.73,1.47335789]
[1743428608563,0.05860791,123.78,123.73,1.47335789]
[1743428609167,0.05860791,123.78,123.73,36.58]
[1743428610166,8.13920791,123.78,123.74,8.0825]
[1743428610762,8.0811,123.77,123.73,106.6632]
[1743428610962,0.05860791,123.78,123.73,98.58]
[1743428611366,0.05860791,123.78,123.74,38.31017257]
[1743428611967,32.40222446,123.83,123.76,38.31017257]
[1743428612167,32.40222446,123.83,123.77,36.58]
[1743428612664,38.31017257,123.84,123.74,36.58]
[1743428612858,8.0793,123.8,123.76,8.0811]
[1743428613061,0.06141529,123.8,123.78,0.05860791]
[1743428613261,0.06141529,123.8,123.73,62.0]
[1743428613762,0.06141529,123.8,123.73,100.31017257]
[1743428613962,0.06141529,123.8,123.78,8.0798]
[1743428614166,0.06141529,123.8,123.76,36.58]
[1743428614864,0.06141529,123.8,123.77,39.78325309]
[1743428615170,155.24128928,123.85,123.79,38.31017257]
[1743428615367,155.24128928,123.85,123.8,24.37700353]